[Event "*** Qualifier 4: Titled Tuesday 3|2 Blitz"]
[Site "Chess.com"]
[Date "2017.04.25"]
[Round "10"]
[White "bugsbunny444"]
[Black "Rodalquilar"]
[Result "1/2-1/2"]
[WhiteElo "2374"]
[BlackElo "2529"]
[TimeControl "180+2"]
[EndTime "15:16:39 PDT"]
[Termination "Game drawn by repetition"]

1. Nf3 {[%clk 0:03:02]} 1... d5 {[%clk 0:02:59.7]} 2. c4 {[%clk 0:03:03.5]} 2...
e6 {[%clk 0:03:00.8]} 3. g3 {[%clk 0:03:05]} 3... Nf6 {[%clk 0:03:02.3]} 4. Bg2
{[%clk 0:03:06.5]} 4... Be7 {[%clk 0:03:03.9]} 5. O-O {[%clk 0:03:07.5]} 5...
O-O {[%clk 0:03:05.5]} 6. b3 {[%clk 0:03:09.2]} 6... a5 {[%clk 0:03:06.4]} 7.
Nc3 {[%clk 0:03:10.3]} 7... c6 {[%clk 0:03:06.8]} 8. d4 {[%clk 0:03:09.3]} 8...
b6 {[%clk 0:03:07.8]} 9. Qc2 {[%clk 0:03:10.6]} 9... Ba6 {[%clk 0:03:09]} 10.
Ne5 {[%clk 0:02:52.3]} 10... Nfd7 {[%clk 0:03:08.6]} 11. Rd1 {[%clk 0:02:43.3]}
11... Nxe5 {[%clk 0:03:08.7]} 12. dxe5 {[%clk 0:02:44.2]} 12... Qc7 {[%clk
0:03:09.6]} 13. Bb2 {[%clk 0:02:02.2]} 13... Nd7 {[%clk 0:03:07.8]} 14. Rac1
{[%clk 0:01:49.4]} 14... Rac8 {[%clk 0:03:07.9]} 15. Qd2 {[%clk 0:01:11.5]}
15... Qb8 {[%clk 0:02:58.7]} 16. f4 {[%clk 0:01:03.7]} 16... Rfd8 {[%clk
0:02:57.7]} 17. cxd5 {[%clk 0:00:47.7]} 17... cxd5 {[%clk 0:02:58]} 18. e3
{[%clk 0:00:46.8]} 18... Nc5 {[%clk 0:02:58.3]} 19. Bf1 {[%clk 0:00:43.7]} 19...
Bb7 {[%clk 0:02:59.5]} 20. Nb5 {[%clk 0:00:33.3]} 20... Ne4 {[%clk 0:02:59.9]}
21. Qe2 {[%clk 0:00:31.7]} 21... Rxc1 {[%clk 0:02:59.2]} 22. Rxc1 {[%clk
0:00:32.6]} 22... Rc8 {[%clk 0:03:01.1]} 23. Qd1 {[%clk 0:00:26.4]} 23... Bc6
{[%clk 0:02:42.4]} 24. Bd4 {[%clk 0:00:26.4]} 24... Bc5 {[%clk 0:02:41.7]} 25.
a4 {[%clk 0:00:23.4]} 25... g6 {[%clk 0:02:40.7]} 26. Bd3 {[%clk 0:00:21.2]}
26... Bxb5 {[%clk 0:02:20.7]} 27. axb5 {[%clk 0:00:19]} 27... Bxd4 {[%clk
0:01:58.1]} 28. exd4 {[%clk 0:00:19.9]} 28... Rc7 {[%clk 0:01:59.5]} 29. Rc6
{[%clk 0:00:13.5]} 29... Rxc6 {[%clk 0:00:32]} 30. bxc6 {[%clk 0:00:14.7]} 30...
Qc7 {[%clk 0:00:33.4]} 31. Bxe4 {[%clk 0:00:15.4]} 31... dxe4 {[%clk 0:00:33.3]}
32. d5 {[%clk 0:00:16.9]} 32... exd5 {[%clk 0:00:25.4]} 33. Qxd5 {[%clk
0:00:17.6]} 33... b5 {[%clk 0:00:18.8]} 34. Qd7 {[%clk 0:00:15.6]} 34... Qb6+
{[%clk 0:00:17.7]} 35. Kg2 {[%clk 0:00:17.1]} 35... Qe3 {[%clk 0:00:15.9]} 36.
c7 {[%clk 0:00:06.4]} 36... Qe2+ {[%clk 0:00:17]} 37. Kg1 {[%clk 0:00:07.8]}
37... Qe1+ {[%clk 0:00:17.1]} 38. Kg2 {[%clk 0:00:09.1]} 38... Qe2+ {[%clk
0:00:18.6]} 39. Kg1 {[%clk 0:00:10.5]} 39... Qe3+ {[%clk 0:00:20.1]} 40. Kf1
{[%clk 0:00:08.9]} 40... Qf3+ {[%clk 0:00:20.8]} 41. Ke1 {[%clk 0:00:10.3]}
41... Qe3+ {[%clk 0:00:16.5]} 42. Kd1 {[%clk 0:00:11.1]} 42... Qxb3+ {[%clk
0:00:17.6]} 43. Ke2 {[%clk 0:00:11.3]} 43... Qf3+ {[%clk 0:00:18.2]} 44. Ke1
{[%clk 0:00:10.5]} 44... Qh1+ {[%clk 0:00:14.6]} 45. Ke2 {[%clk 0:00:10.8]}
45... Qxh2+ {[%clk 0:00:16]} 46. Kd1 {[%clk 0:00:09.4]} 46... Qg1+ {[%clk
0:00:15.4]} 47. Kc2 {[%clk 0:00:08.3]} 47... Qc5+ {[%clk 0:00:16.4]} 48. Kd1
{[%clk 0:00:07.2]} 48... Qg1+ {[%clk 0:00:16.1]} 49. Kc2 {[%clk 0:00:08.4]}
49... Qf2+ {[%clk 0:00:17.5]} 50. Kd1 {[%clk 0:00:07.3]} 50... Qf3+ {[%clk
0:00:14.3]} 51. Kc2 {[%clk 0:00:07]} 51... Qe2+ {[%clk 0:00:13.9]} 52. Kc1
{[%clk 0:00:07.3]} 52... Qc4+ {[%clk 0:00:13.2]} 53. Kd1 {[%clk 0:00:08.1]}
53... Qb3+ {[%clk 0:00:14.7]} 54. Ke2 {[%clk 0:00:07.4]} 54... Qf3+ {[%clk
0:00:12.8]} 55. Ke1 {[%clk 0:00:07.8]} 55... Qxg3+ {[%clk 0:00:14.1]} 56. Kd1
{[%clk 0:00:04.6]} 56... Qf3+ {[%clk 0:00:12.4]} 57. Kc2 {[%clk 0:00:05.2]}
57... Qe2+ {[%clk 0:00:12.8]} 58. Kb1 {[%clk 0:00:04.6]} 58... Qe1+ {[%clk
0:00:11.9]} 59. Kc2 {[%clk 0:00:05.8]} 59... Qf2+ {[%clk 0:00:12.1]} 60. Kb1
{[%clk 0:00:07.1]} 60... Qf1+ {[%clk 0:00:12.7]} 61. Kc2 {[%clk 0:00:08.4]}
61... Qc4+ {[%clk 0:00:13.5]} 62. Kb1 {[%clk 0:00:09.9]} 62... Qb4+ {[%clk
0:00:14.9]} 63. Kc2 {[%clk 0:00:10.7]} 63... Qa4+ {[%clk 0:00:15.8]} 64. Kb1
{[%clk 0:00:11.8]} 64... Qb3+ {[%clk 0:00:16.7]} 65. Kc1 {[%clk 0:00:13.2]}
65... Qe3+ {[%clk 0:00:16.6]} 66. Kb1 {[%clk 0:00:13.5]} 66... Qe1+ {[%clk
0:00:17.9]} 67. Kc2 {[%clk 0:00:13.7]} 67... Qf2+ {[%clk 0:00:17.8]} 68. Kb1
{[%clk 0:00:11.4]} 68... Qf1+ {[%clk 0:00:19]} 69. Kc2 {[%clk 0:00:11.9]} 69...
Qc4+ {[%clk 0:00:19.7]} 70. Kb1 {[%clk 0:00:12]} 70... Qb3+ {[%clk 0:00:20.8]}
71. Kc1 {[%clk 0:00:12.8]} 71... Qc4+ {[%clk 0:00:20]} 72. Kb1 {[%clk
0:00:13.2]} 72... Qb4+ {[%clk 0:00:21.4]} 73. Kc2 {[%clk 0:00:13.7]} 73... Qa4+
{[%clk 0:00:20.8]} 74. Kb2 {[%clk 0:00:13.4]} 74... Qb4+ {[%clk 0:00:20.8]} 75.
Kc2 {[%clk 0:00:14.5]} 75... Qc5+ {[%clk 0:00:12.3]} 76. Kb2 {[%clk 0:00:14.8]}
76... Qf2+ {[%clk 0:00:13.2]} 77. Kb1 {[%clk 0:00:14.7]} 77... Qf1+ {[%clk
0:00:13]} 78. Kc2 {[%clk 0:00:14.3]} 78... Qe2+ {[%clk 0:00:14.2]} 79. Kb1
{[%clk 0:00:14.4]} 79... Qe1+ {[%clk 0:00:15.6]} 80. Kc2 {[%clk 0:00:14.9]}
80... Qe2+ {[%clk 0:00:15.8]} 1/2-1/2